bitfinex/quotes_ETHUSD_20241223
["timestamp","ask_amount","ask_price","bid_price","bid_amount"]
[1734913587091,3.05695,3271.3,3270.3,0.7385]
[1734913587690,0.660658,3271.5,3270.3,0.7385]
[1734913587893,3.717398,3271.5,3270.3,0.7385]
[1734913588192,3.05649,3271.8,3270.5,3.05762]
[1734913588576,3.05654,3271.7,3270.3,7.24449824]
[1734913588781,3.05654,3271.7,3270.4,3.05771]
[1734913589182,3.0,3272.2,3270.3,4.18669824]
[1734913589493,3.05634,3271.9,3270.5,3.0576]
[1734913589860,3.0565,3271.8,3270.5,3.0576]
[1734913590297,0.37882,3272.0,3270.5,0.7385]
[1734913590461,3.0,3271.9,3270.6,3.05749]
[1734913590661,3.0,3271.9,3270.7,3.05744]
[1734913591499,3.05628,3272.0,3270.8,0.7385]
[1734913591798,3.05628,3272.0,3270.8,3.79583]
[1734913591995,3.05603,3272.3,3270.9,3.0572]
[1734913592185,1.449406,3272.4,3271.1,3.79557]
[1734913592186,0.4505436,3272.2,3271.1,3.79557]
[1734913592380,4.505266,3272.4,3271.1,3.79557]
[1734913592559,1.449406,3272.4,3271.1,0.7385]
[1734913592760,3.05635,3271.9,3270.7,0.7385]
[1734913592990,0.7679,3271.7,3270.7,0.7385]
[1734913593186,3.05646,3271.8,3270.7,0.7385]
[1734913593526,0.305646,3271.8,3270.7,3.79589]
[1734913593700,0.305646,3271.8,3270.7,0.7385]
[1734913593998,3.05699,3271.2,3270.7,0.7385]
[1734913594205,3.05656,3271.7,3270.7,0.7385]
[1734913594361,3.05689,3271.3,3270.7,0.7385]
[1734913594559,3.05719,3271.0,3270.3,0.7385]
[1734913595372,3.05724,3271.0,3270.3,0.7385]
[1734913595573,0.305724,3270.9,3269.8,0.7385]
[1734913595800,0.7524,3271.1,3269.8,0.7385]
[1734913595801,3.05753,3270.7,3269.8,0.7385]
[1734913596203,0.7524,3271.1,3269.8,0.7385]
[1734913596423,3.05753,3270.7,3269.8,0.7385]
[1734913596617,3.05754,3270.6,3269.8,0.7385]
[1734913597095,3.05707,3271.2,3269.6,8.92238]
[1734913597333,3.05707,3271.1,3270.0,0.7385]
[1734913597884,3.05719,3271.0,3270.0,0.7385]
[1734913598118,3.72894184,3271.2,3270.0,0.7385]
[1734913598421,3.05708,3271.1,3270.0,0.7385]
[1734913598622,0.67193184,3271.2,3270.1,0.7385]
[1734913598822,3.05659,3271.7,3270.4,0.7385]
[1734913599121,3.05662,3271.6,3270.4,3.79622]
[1734913599320,0.7575,3271.8,3270.5,3.05761]
[1734913599524,0.381388,3271.8,3270.7,3.05743]
[1734913599816,3.0561,3272.2,3271.0,0.7385]
[1734913600484,0.7689,3272.5,3271.0,0.7385]
[1734913600912,3.05651,3271.7,3271.0,0.7385]
[1734913601221,3.05629,3272.0,3271.0,0.7385]
[1734913601417,3.361919,3272.0,3271.0,0.7385]
[1734913601617,0.305629,3272.0,3271.0,0.7385]
[1734913601829,3.05661,3271.6,3271.0,0.7385]
[1734913601984,3.0,3272.4,3271.0,0.7385]
[1734913602191,3.05607,3272.2,3271.0,0.7385]
[1734913602801,0.7689,3272.5,3271.0,0.7385]
[1734913603135,3.0,3272.4,3271.1,3.05706]
[1734913603308,0.37689,3272.3,3271.1,3.05706]
[1734913603520,3.05623,3272.1,3271.0,0.7385]
[1734913603718,3.05589,3272.4,3271.1,0.7385]
[1734913604028,2.02969924,3272.9,3271.5,0.7385]
[1734913604029,0.7653,3272.9,3271.5,0.7385]
[1734913604324,3.05549,3272.8,3271.6,3.05659]
[1734913604790,1.26439924,3273.0,3271.7,0.7385]
[1734913604990,1.58053714,3273.0,3271.7,0.7385]
[1734913605191,3.05569,3272.6,3271.7,0.7385]
[1734913605495,3.05546,3272.9,3271.7,0.7385]
[1734913605840,0.3161379,3273.0,3271.7,0.7385]
[1734913606121,3.0,3272.7,3271.7,0.7385]
[1734913606325,3.05642,3271.8,3271.7,0.7385]
[1734913606523,3.60581,3272.5,3271.3,0.7385]
[1734913606725,3.05625,3272.0,3271.3,0.7385]
[1734913606937,0.305625,3271.9,3271.3,0.7385]
[1734913607531,3.361955,3271.9,3271.3,0.7385]
[1734913607894,0.305625,3271.9,3270.6,0.7385]
[1734913608102,3.0,3272.3,3270.6,0.7385]
[1734913608103,0.55,3272.2,3270.6,0.7385]
[1734913608392,3.05691,3271.3,3270.6,0.7385]
[1734913609232,3.05665,3271.6,3270.6,0.7385]
[1734913609434,3.05642,3271.8,3270.6,0.7385]
[1734913609642,3.0568,3271.4,3270.6,0.7385]
[1734913610393,0.7534,3271.9,3270.6,0.7385]
[1734913610590,3.05651,3271.7,3270.6,0.7385]
[1734913610813,0.7534,3271.9,3270.6,0.7385]
[1734913611029,3.05717,3271.0,3270.6,0.7385]
[1734913611596,0.305717,3271.0,3270.6,0.7385]
[1734913611847,3.05773,3270.4,3269.9,0.7385]
[1734913612015,3.0,3270.6,3269.6,0.7385]
[1734913612223,3.0583,3269.8,3269.6,0.7385]
[1734913612634,3.05849,3269.6,3269.2,0.7385]
[1734913612976,0.30583,3269.8,3268.9,0.48746696]
[1734913612977,3.05875,3269.3,3268.9,0.48746696]
[1734913613180,3.05899,3269.1,3268.9,0.48746696]
[1734913613683,3.0596,3268.4,3267.6,0.21686407]
[1734913613820,3.06063,3267.3,3267.2,2.53807238]
[1734913614017,6.86433,3267.3,3267.2,2.53807238]
[1734913614317,10.31252824,3267.3,3267.2,2.53807238]
[1734913614522,7.89558282,3267.3,3267.2,2.08317238]
[1734913614826,8.44558282,3267.3,3267.2,2.08317238]
[1734913615027,3.55,3267.2,3267.1,2.86e-06]
[1734913615279,3.55,3267.2,3265.7,3.28487918]
[1734913615280,3.06132,3266.6,3265.7,3.28487918]
[1734913615751,3.06112,3266.8,3265.7,3.28487918]
[1734913615953,3.422232,3266.8,3265.7,3.28487918]
[1734913616117,3.06074,3267.2,3265.8,8.92238]
[1734913616319,3.06084,3267.1,3265.7,12.20725918]
[1734913616543,0.8211,3267.8,3266.0,8.92238]
[1734913616737,1.26439924,3266.7,3266.2,0.7385]
[1734913617032,1.26439924,3266.7,3266.4,3.06145]
[1734913617355,1.26439924,3266.7,3266.2,0.7385]
[1734913617924,3.06041,3267.6,3266.2,0.7385]
[1734913618119,2.08549924,3267.8,3266.2,0.7385]
[1734913618325,1.26439924,3267.8,3266.2,0.7385]
[1734913618517,1.26439924,3267.7,3266.2,0.7385]
[1734913619042,1.26439924,3267.7,3266.3,3.06154]
[1734913619760,3.05997,3268.0,3266.2,0.7385]
[1734913619958,4.26439924,3268.1,3266.2,0.7385]
[1734913620336,3.0,3267.9,3266.3,3.0615]
[1734913620530,0.3,3267.8,3266.2,0.7385]
[1734913620858,3.06057,3267.4,3266.2,0.7385]
[1734913621423,0.55,3268.0,3266.2,0.7385]
[1734913621620,3.0,3267.9,3266.2,0.7385]
[1734913621933,1.26439924,3268.0,3267.2,3.06065]
[1734913622137,1.26439924,3268.0,3267.3,0.7385]
[1734913622535,1.58053714,3268.0,3267.3,0.7385]
[1734913622837,3.06017,3267.8,3266.9,0.7385]
[1734913623731,0.3161379,3268.0,3266.9,0.7385]
[1734913624066,3.0,3268.1,3266.9,0.7385]
[1734913624268,6.0599,3268.1,3266.9,0.7385]
[1734913625350,1.26439924,3268.5,3266.9,0.7385]
[1734913625523,3.0,3268.2,3266.9,0.7385]
[1734913625723,1.26439924,3268.5,3266.9,0.7385]
[1734913625923,3.05991,3268.1,3266.9,0.7385]
[1734913626150,0.97643992,3268.4,3266.9,0.7385]
[1734913626345,3.0,3268.3,3266.9,3.79949]
[1734913626531,0.42643992,3268.4,3267.0,8.92238]
[1734913626737,1.26439924,3268.5,3267.0,8.92238]
[1734913626933,3.06013,3267.9,3266.9,0.7385]
[1734913627261,0.7716,3268.2,3266.5,0.7385]
[1734913627464,3.06037,3267.6,3266.5,0.7385]
[1734913627665,3.06053,3267.5,3266.5,0.7385]
[1734913627964,0.306053,3267.4,3266.5,0.7385]
[1734913628119,3.366613,3267.4,3266.5,0.7385]
[1734913628628,3.06073,3267.2,3265.9,0.7385]
[1734913629337,3.06073,3267.2,3265.9,3.80042]
[1734913629925,0.306053,3267.4,3265.9,3.06189]
[1734913630225,0.306053,3267.4,3265.8,12.91703199]
[1734913630226,3.815,3267.2,3266.1,0.7385]
[1734913630432,3.06084,3267.1,3266.1,0.7385]
[1734913631267,3.06092,3267.0,3266.1,0.7385]
[1734913631765,3.0612,3266.7,3266.1,0.7385]
[1734913632061,0.30612,3266.6,3265.8,8.92238]
[1734913633158,3.06093,3267.0,3265.8,8.92238]
[1734913633368,0.7738,3267.6,3266.0,8.92238]
[1734913633535,0.7738,3267.6,3266.1,8.92238]
[1734913633973,0.7738,3267.6,3266.2,3.06165]
[1734913634272,3.0,3267.5,3266.1,8.92238]
[1734913634433,3.06119,3266.7,3265.7,0.7385]
[1734913634633,3.06129,3266.6,3265.7,0.7385]
[1734913635436,0.786,3266.7,3265.7,0.7385]
[1734913635637,0.786,3267.1,3265.8,8.92238]
[1734913635847,0.786,3267.1,3266.1,3.06171]
[1734913636296,3.06053,3267.4,3266.1,3.06171]
[1734913636441,0.786,3267.5,3265.9,3.0]
[1734913636800,0.786,3267.5,3265.8,8.92238]
[1734913636941,3.06083,3267.1,3265.8,8.92238]
[1734913637142,0.306083,3267.0,3265.8,8.92238]
[1734913637419,0.306083,3267.0,3266.0,3.06184]
[1734913637564,3.06059,3267.4,3266.0,3.06184]
[1734913637967,3.06063,3267.3,3266.0,3.06184]
[1734913638226,3.06063,3267.3,3265.8,8.92238]
[1734913638227,3.0,3267.3,3265.8,8.92238]
[1734913638427,0.55,3267.2,3265.7,0.7385]
[1734913638722,3.786,3267.3,3265.6,0.168957]
[1734913638723,3.06119,3266.7,3265.6,0.168957]
[1734913638864,0.55,3266.4,3265.6,0.168957]
[1734913639070,3.06193,3266.0,3265.6,0.168957]
[1734913639505,3.8476,3266.3,3265.6,0.168957]
[1734913639705,0.786,3266.3,3265.6,0.168957]
[1734913640725,3.0621,3265.8,3265.6,0.168957]
[1734913640863,0.30621,3265.7,3265.6,0.168957]
[1734913641870,3.36834,3265.7,3265.6,0.168957]
[1734913642070,3.06213,3265.7,3264.7,0.7385]
[1734913643079,3.0622,3265.7,3264.7,0.7385]
[1734913643302,0.8172,3265.4,3264.3,0.7385]
[1734913643507,3.06307,3264.7,3263.9,0.7385]
[1734913643664,3.06336,3264.4,3263.1,3.803]
[1734913644326,3.06375,3264.0,3263.1,0.7385]
[1734913644523,0.8172,3264.5,3263.1,0.7385]
[1734913644702,3.88046,3264.5,3263.1,0.7385]
[1734913644904,3.88046,3264.5,3263.2,3.06444]
[1734913645082,0.388046,3264.4,3263.2,3.06444]
[1734913645291,3.8377,3265.0,3263.8,0.7385]
[1734913645497,0.7749,3265.0,3263.8,0.7385]
[1734913645672,3.06302,3264.8,3263.8,0.7385]
[1734913646023,3.83769,3265.0,3263.8,0.7385]
[1734913646168,0.438769,3264.9,3263.8,0.7385]
[1734913646367,3.501659,3264.9,3263.5,3.80268]
[1734913646567,3.06318,3264.6,3263.5,0.7385]
[1734913647667,0.55,3264.8,3263.5,0.7385]
[1734913647871,0.55,3264.8,3263.2,3.06445]
[1734913648117,0.55,3264.8,3263.0,0.7385]
[1734913648320,3.06339,3264.4,3263.0,3.80315]
[1734913648644,3.369789,3264.3,3263.1,3.06456]
[1734913648801,0.55,3264.8,3263.0,0.7385]
[1734913648971,3.06319,3264.6,3263.0,0.7385]
[1734913649308,3.501689,3264.9,3263.6,3.06406]
[1734913649473,0.438769,3264.9,3263.7,3.80245]
[1734913649669,0.18124446,3264.8,3263.7,3.80245]
[1734913650485,0.18124446,3264.8,3263.7,0.7385]
[1734913650681,0.7926,3264.5,3263.1,0.7385]
[1734913651294,0.8227,3265.0,3263.9,3.06379]
[1734913651509,0.38227,3264.9,3263.8,0.7385]
[1734913651673,0.8227,3265.0,3264.0,3.06369]
[1734913651988,0.8227,3265.0,3264.1,3.06357]
[1734913652409,0.8227,3265.0,3264.4,3.06332]
[1734913652603,3.06242,3265.4,3263.8,9.66088]
[1734913652803,0.7752,3265.5,3263.9,8.92238]
[1734913652990,0.20395992,3265.4,3264.3,3.06343]
[1734913654407,0.20395992,3265.4,3264.0,3.0]
[1734913654613,0.7752,3265.5,3264.3,3.0634]
[1734913654972,0.7752,3265.5,3264.4,3.06332]
[1734913655172,0.7752,3265.5,3264.0,11.92238]
[1734913655379,0.7752,3265.5,3264.4,3.0633]
[1734913655575,0.7752,3265.5,3264.4,3.06331]
[1734913655987,0.7752,3265.5,3264.0,14.98607]
[1734913656229,0.7752,3265.5,3264.5,3.06323]
[1734913657025,0.55,3265.4,3263.8,0.7385]
[1734913657186,3.0625,3265.3,3263.8,0.7385]
[1734913657525,0.7752,3265.5,3263.8,0.7385]
[1734913657526,3.83754,3265.5,3263.8,0.7385]
[1734913657732,0.7752,3265.5,3264.7,3.06302]
[1734913657935,1.26439924,3265.4,3264.6,0.7385]
[1734913658623,1.26439924,3265.2,3264.6,0.7385]
[1734913659632,1.26439924,3265.1,3264.6,0.7385]
[1734913659930,1.26439924,3265.1,3264.2,3.06351]
[1734913660128,1.26439924,3265.1,3264.0,0.7385]
[1734913660289,0.8082,3264.9,3263.6,4.33705115]
[1734913660489,0.8082,3264.9,3263.8,3.06383]
[1734913660929,0.8082,3264.9,3263.8,3.06389]
[1734913661139,1.26439924,3264.9,3263.6,3.89514892]
[1734913661337,1.26439924,3264.9,3264.3,3.06343]
[1734913662144,1.26439924,3265.0,3264.2,3.06349]
[1734913662806,1.26439924,3265.0,3263.8,3.06386]
[1734913662998,1.26439924,3265.0,3263.6,3.89514892]
[1734913663202,1.26439924,3265.0,3263.6,3.7385]
[1734913663439,0.3161379,3264.9,3263.7,3.06399]
[1734913663732,3.85658,3264.8,3263.6,0.7385]
[1734913664221,1.26439924,3264.7,3263.6,0.7385]
[1734913665797,1.26439924,3264.7,3263.9,3.46279922]
[1734913666139,1.26439924,3264.7,3264.1,3.06362]
[1734913666439,1.26439924,3264.7,3264.0,0.7385]
[1734913666637,1.26439924,3264.9,3264.2,3.06348]
[1734913667725,3.36444304,3265.2,3264.2,3.06348]
[1734913667726,0.8333,3265.2,3264.2,3.06348]
[1734913667930,3.8959,3265.2,3264.0,3.80222]
[1734913668237,3.06279,3265.0,3264.0,0.7385]
[1734913668429,0.389609,3265.0,3264.0,0.7385]
[1734913668625,5.16030924,3265.2,3264.0,3.80221]
[1734913669256,2.09769924,3265.2,3264.0,0.7385]
[1734913669655,3.06269,3265.1,3264.0,0.7385]
[1734913669950,3.06299,3264.8,3263.9,3.46279922]
[1734913670167,0.7726,3264.6,3263.6,0.7385]
[1734913670345,3.83576,3264.6,3263.6,0.7385]
[1734913670852,0.7726,3264.6,3263.6,3.80258]
[1734913672036,0.7726,3264.6,3263.6,0.7385]
[1734913672245,3.06336,3264.4,3263.5,3.46279922]
[1734913672449,0.383596,3264.4,3263.3,0.7385]
[1734913672647,0.7726,3264.6,3263.1,3.46279922]
[1734913672648,0.55,3264.5,3263.1,3.46279922]
[1734913672854,3.06354,3264.2,3263.1,3.46279922]
[1734913673049,0.55,3264.5,3263.1,3.46279922]
[1734913673050,3.06374,3264.0,3263.1,3.46279922]
[1734913673249,0.55,3264.5,3262.7,3.46279922]
[1734913673250,3.06403,3263.7,3262.7,3.46279922]
[1734913673454,3.370503,3263.6,3262.7,3.46279922]
[1734913673762,3.370503,3263.6,3262.5,0.7385]
[1734913674088,0.8182,3263.5,3262.3,0.168957]
[1734913674723,0.8182,3263.5,3262.3,0.118957]
[1734913674929,0.8182,3263.5,3262.7,3.06492]
[1734913675269,1.26439924,3263.4,3262.5,3.46279922]
[1734913675428,1.26439924,3263.4,3262.3,0.118957]
[1734913676149,0.8182,3263.5,3262.3,0.118957]
[1734913676569,3.88239,3263.5,3262.3,3.184267]
[1734913676733,3.57897892,3263.4,3262.3,0.118957]
[1734913678567,0.51467892,3263.4,3262.3,0.118957]
[1734913678770,3.06438,3263.3,3262.3,0.118957]
[1734913678975,0.8109,3262.4,3262.3,0.118957]
[1734913679182,4.3609,3262.4,3262.3,0.118957]
[1734913679335,4.98014557,3262.4,3262.3,0.118957]
[1734913679537,5.78468213,3262.4,3262.3,0.118957]
[1734913680067,9.24748135,3262.4,3262.3,0.118957]
[1734913680675,3.06541,3262.2,3260.4,14.98947]
[1734913680971,3.0656,3262.0,3260.6,3.06687]
[1734913681346,1.2683316,3262.0,3260.4,11.92238]
[1734913681546,1.2683316,3262.0,3261.1,0.7385]
[1734913681772,1.2683316,3262.0,3261.2,3.06631]
[1734913681976,1.2683316,3262.0,3261.1,4.20129922]
[1734913682276,1.2683316,3262.0,3261.4,3.06615]
[1734913682570,0.8171,3262.3,3261.4,3.06615]
[1734913682761,0.8171,3262.3,3261.2,3.06633]
[1734913683074,0.8171,3262.3,3261.1,4.20129922]
[1734913683274,3.88245,3262.3,3261.1,4.20129922]
[1734913683472,3.88245,3262.3,3261.1,7.26773922]
[1734913683648,0.8171,3262.3,3261.1,7.87355613]
[1734913685186,0.8171,3262.3,3261.1,4.80711613]
[1734913685342,5.1109616,3262.7,3261.5,3.46359922]
[1734913685540,1.2683316,3262.7,3261.8,3.0]
[1734913685848,1.2683316,3262.7,3261.9,3.06568]
[1734913686171,1.2683316,3262.7,3262.0,3.0]
[1734913686673,0.7776,3263.0,3261.7,0.15745278]
[1734913686977,0.7776,3263.0,3261.7,3.0658]
[1734913687342,0.7776,3263.0,3261.8,3.0]
[1734913687540,3.06477,3262.9,3261.8,3.0]
[1734913687843,0.55,3262.7,3261.6,0.7385]
[1734913688186,3.06509,3262.6,3261.6,0.7385]
[1734913688364,0.306509,3262.5,3261.6,0.7385]
[1734913688869,3.06496,3262.7,3261.6,3.7385]
[1734913689257,1.2683316,3262.9,3261.6,0.7385]
[1734913689454,3.06554,3262.1,3261.5,0.0008]
[1734913689793,3.06561,3262.0,3261.5,0.0008]
[1734913690005,0.306561,3261.9,3261.5,0.0008]
[1734913690140,0.7875,3262.3,3261.5,0.0008]
[1734913690494,3.84177,3261.6,3261.5,0.0008]
[1734913691548,7.39177,3261.6,3261.5,0.0008]
[1734913691805,0.7758,3261.0,3259.6,0.7443]
[1734913692003,3.06701,3260.5,3259.6,0.7443]
[1734913692297,3.06679,3260.8,3259.6,0.7443]
[1734913692480,3.451049,3260.8,3259.6,0.7443]
[1734913692680,0.7758,3261.0,3259.7,3.46279922]
[1734913692883,0.7758,3261.0,3259.8,3.06767]
[1734913693260,3.06672,3260.9,3259.8,3.0]
[1734913693665,3.06675,3260.8,3259.8,3.0]
[1734913693901,0.7758,3261.0,3259.8,3.0]
[1734913694245,0.7758,3261.0,3260.0,3.06892]
[1734913694471,0.7758,3261.3,3260.0,3.06892]
[1734913694669,0.7758,3261.3,3260.0,3.0015]
[1734913694983,3.06646,3261.1,3260.0,3.0015]
[1734913695369,3.06646,3261.1,3260.0,0.0015]
[1734913695769,3.84209,3261.3,3260.0,3.06896]
[1734913695972,3.450579,3261.2,3260.0,0.0015]
[1734913696360,0.384209,3261.2,3260.0,0.0015]
[1734913696572,3.06658,3261.0,3260.0,0.0015]
[1734913696773,3.06658,3261.0,3260.0,3.0015]
[1734913697163,3.06658,3261.0,3260.0,0.0015]
[1734913697359,0.7758,3261.3,3260.0,0.0015]
[1734913697572,3.06659,3261.0,3260.0,0.0015]
[1734913697775,0.306659,3260.9,3260.0,0.0015]
[1734913697975,3.06674,3260.8,3260.0,0.0015]
[1734913698380,3.84213,3261.3,3260.0,0.0015]
[1734913698381,3.06653,3261.1,3260.0,0.0015]
[1734913698561,3.06667,3260.9,3260.0,0.0015]
[1734913698788,0.55,3261.2,3260.0,0.0015]
[1734913699089,3.06697,3260.6,3260.0,0.0015]
[1734913699288,3.373727,3260.5,3260.0,0.0015]
[1734913699492,3.06711,3260.4,3260.0,0.0015]
[1734913699692,0.8255,3260.4,3260.0,0.0015]
[1734913700256,3.0672,3260.3,3260.0,0.0015]
[1734913701081,3.06689,3260.7,3260.0,0.0015]
[1734913701293,0.306689,3260.6,3260.0,0.0015]
[1734913701797,0.8315,3260.8,3260.0,0.0015]
[1734913702296,3.06645,3261.1,3260.1,0.7393]
[1734913702603,0.8239,3261.2,3260.1,3.80668]
[1734913702811,5.1583616,3261.5,3260.1,0.7393]
[1734913702988,5.1583616,3261.5,3260.2,3.06727]
[1734913702989,0.7060859,3261.4,3260.2,3.06727]
[1734913703172,0.7060859,3261.4,3260.2,38.06727]
[1734913703802,0.7060859,3261.4,3260.1,0.7393]
[1734913703803,3.89003,3261.5,3260.3,3.06718]
[1734913704183,3.06583,3261.8,3260.6,0.7393]
[1734913704711,3.06593,3261.7,3260.6,0.7393]
[1734913704916,1.3712088,3261.9,3260.1,12.38517922]
[1734913704917,3.06579,3261.8,3260.2,3.7393]
[1734913705470,0.55,3261.6,3260.2,3.7393]
[1734913705675,3.06618,3261.4,3260.2,3.7393]
[1734913706806,3.06618,3261.4,3260.2,6.80652]
[1734913707032,3.06593,3261.7,3260.3,3.06717]
[1734913707324,3.06593,3261.7,3260.4,3.0671]
[1734913707508,1.3712088,3261.9,3260.2,6.80659]
[1734913707710,0.44368888,3261.8,3260.2,6.80659]
[1734913707899,3.06604,3261.6,3260.4,3.0671]
[1734913710103,0.44368888,3261.8,3260.2,3.7393]
[1734913710104,0.44368888,3261.8,3260.5,4.20209922]
[1734913710432,3.06569,3262.0,3260.8,3.06666]
[1734913710925,1.2683316,3262.1,3260.7,0.60189804]
[1734913711227,1.2683316,3262.1,3260.8,0.7393]
[1734913711228,4.3338716,3262.1,3260.8,0.7393]
[1734913711439,0.51177716,3262.0,3260.8,3.80598]
[1734913712092,3.57738716,3262.0,3260.8,3.80598]
[1734913712533,0.51177716,3262.0,3261.0,3.0665]
[1734913714105,0.7839,3262.2,3260.9,3.46279922]
[1734913714419,1.2683316,3262.6,3260.9,3.46279922]
[1734913714420,0.7608,3262.5,3261.1,0.7393]
[1734913715310,3.06598,3261.6,3260.6,0.7393]
[1734913715705,0.7608,3261.7,3260.6,0.7393]
[1734913715908,3.06597,3261.6,3260.6,0.7393]
[1734913716104,3.06648,3261.1,3260.6,0.7393]
[1734913716701,3.06623,3261.4,3260.6,0.7393]
[1734913717096,0.382677,3261.5,3260.6,3.80619]
[1734913717301,1.2683316,3261.9,3260.6,0.7393]
[1734913717499,1.2683316,3261.4,3260.7,3.06682]
[1734913717731,1.2683316,3261.4,3260.6,0.7393]
[1734913717916,1.2683316,3261.4,3260.7,3.06682]
[1734913718123,1.2683316,3261.4,3260.8,3.06667]
[1734913718323,1.2683316,3261.9,3260.9,3.06662]
[1734913718524,4.3340416,3261.9,3260.9,3.46279922]
[1734913718714,4.3340416,3261.9,3260.6,3.80612]
[1734913718910,0.6236539,3261.8,3260.6,0.7393]
[1734913719598,3.06605,3261.6,3260.6,0.7393]
[1734913720108,3.06617,3261.4,3260.6,0.7393]
[1734913720939,1.8919855,3261.8,3260.6,0.7393]
[1734913721125,3.06588,3261.7,3260.6,0.7393]
[1734913721333,1.2683316,3261.4,3260.6,0.7393]
[1734913721534,3.06628,3261.3,3260.6,0.7393]
[1734913721733,3.06635,3261.2,3260.6,0.7393]
[1734913722237,0.7958,3261.3,3260.0,3.06898]
[1734913722238,2.0641316,3261.3,3260.2,0.7393]
[1734913722437,0.60785962,3261.0,3260.0,0.0015]
[1734913722743,3.06711,3260.4,3260.0,0.0015]
[1734913722901,3.06733,3260.2,3260.0,0.0015]
[1734913723735,0.8121,3260.5,3260.0,0.0015]
[1734913723906,3.06739,3260.1,3260.0,0.0015]
[1734913724938,1.2683316,3260.2,3260.0,0.0015]
[1734913725441,1.2683316,3260.1,3260.0,0.0015]
[1734913726346,1.2683316,3260.5,3260.0,0.0015]
[1734913727325,1.2683316,3260.6,3260.0,0.0015]
[1734913727735,1.5854145,3260.6,3260.0,0.0015]
[1734913728671,4.6523645,3260.6,3260.0,0.0015]
[1734913728833,3.06703,3260.5,3260.0,0.0015]
[1734913729511,4.3353616,3260.5,3260.0,0.0015]
[1734913729933,1.2683316,3260.5,3260.0,0.0015]
[1734913730144,3.0672,3260.3,3260.0,0.0015]
[1734913730914,0.34879119,3260.4,3260.0,0.0015]
[1734913731529,1.61712279,3260.4,3260.0,0.0015]
[1734913732227,0.34879119,3260.4,3260.0,0.0015]
[1734913733069,1.61712279,3260.4,3260.0,0.0015]
[1734913735284,0.16171228,3260.3,3260.0,0.0015]
[1734913737739,1.43004388,3260.3,3260.0,0.0015]
[1734913737919,4.49724388,3260.3,3260.0,0.0015]
[1734913738436,1.43004388,3260.3,3260.0,0.0015]
[1734913740319,1.2683316,3260.3,3260.0,0.0015]
[1734913741388,0.34879119,3260.4,3260.0,0.0015]
[1734913741785,1.2683316,3260.5,3260.1,0.7393]
[1734913743931,1.2683316,3260.7,3260.1,0.7393]
[1734913745421,1.2683316,3260.7,3260.1,3.80668]
[1734913746006,1.2683316,3260.7,3260.1,0.7393]
[1734913746422,3.06683,3260.7,3260.1,0.7393]
[1734913746925,0.306683,3260.6,3260.1,0.7393]
[1734913747622,1.2683316,3260.7,3260.2,3.06728]
[1734913747828,1.2683316,3260.7,3260.1,3.60427574]
[1734913748031,1.2683316,3260.7,3260.6,3.80622]
[1734913748406,1.2683316,3260.7,3260.6,6.80622]
[1734913748610,1.9024974,3260.9,3260.6,17.895996]
[1734913748815,0.78515806,3261.0,3260.9,6.80593]
[1734913749147,0.91459268,3261.5,3261.4,3.80546]
[1734913749355,0.91459268,3261.5,3261.4,6.67043574]
[1734913749508,0.91459268,3261.5,3261.0,0.7393]
[1734913750534,0.91459268,3261.5,3260.6,3.0669]
[1734913750535,0.7853,3262.7,3261.4,0.7393]
[1734913750832,3.06543,3262.2,3261.4,0.7393]
[1734913751023,0.306543,3262.1,3261.4,0.7393]
[1734913752412,3.85032,3262.7,3261.4,0.7393]
[1734913752609,3.06532,3262.3,3261.4,0.7393]
[1734913753135,3.06535,3262.3,3261.1,0.7393]
[1734913753323,0.7685,3261.9,3261.1,0.7393]
[1734913753521,3.06588,3261.7,3261.1,0.7393]
[1734913753835,3.449318,3261.7,3261.1,0.7393]
[1734913754020,3.06542,3262.2,3261.3,2.86497574]
[1734913754743,0.8266,3262.4,3261.6,2.86497574]
[1734913754944,3.06505,3262.6,3261.6,2.86497574]
[1734913755823,3.06519,3262.5,3261.7,0.7393]
[1734913756333,0.8266,3262.7,3261.7,0.7393]
[1734913756537,3.06542,3262.2,3261.7,0.7393]
[1734913757734,0.389151,3262.6,3261.3,3.60427574]
[1734913757907,0.7666,3262.2,3261.0,3.60427574]
[1734913758236,3.06572,3261.9,3261.0,3.60427574]
[1734913759303,0.7666,3262.2,3261.0,3.60427574]
[1734913759524,3.06579,3261.8,3261.0,3.60427574]
[1734913760255,3.06588,3261.7,3261.0,3.60427574]
[1734913761542,3.0655,3262.1,3261.0,3.60427574]
[1734913761845,3.06563,3262.0,3261.3,2.86497574]
[1734913762442,2.03535278,3262.2,3261.4,0.7393]
[1734913762443,1.26875278,3262.2,3261.4,0.7393]
[1734913762641,1.26875278,3262.2,3261.6,2.86497574]
[1734913762850,1.26875278,3262.4,3261.6,2.86497574]
[1734913763934,1.93135049,3262.4,3261.6,2.86497574]
[1734913764240,0.66259771,3262.4,3261.6,2.86497574]
[1734913764548,0.7976,3262.7,3261.6,2.86497574]
[1734913764549,3.06495,3262.7,3261.6,5.93094574]
[1734913764756,3.06495,3262.7,3261.7,0.7393]
[1734913765119,1.26875278,3262.8,3261.7,0.7393]
[1734913765320,1.26875278,3262.8,3261.9,2.86497574]
[1734913765519,4.33347278,3263.0,3261.9,2.86497574]
[1734913765728,1.26875278,3263.0,3262.9,0.7393]
[1734913766139,1.26875278,3263.0,3262.9,3.80405]
[1734913766651,0.98647352,3263.0,3262.9,13.53636874]
[1734913766857,0.98647352,3263.0,3262.9,22.17501174]
[1734913767037,3.52e-06,3263.0,3262.9,22.17501174]
[1734913767239,1.00507451,3263.3,3263.2,3.06447]
[1734913767439,3.40291894,3263.7,3263.6,6.0641]
[1734913767654,0.96529478,3264.2,3264.1,0.7393]